bitfinex-derivatives/quotes_SOLF0:USTF0_20250320
["timestamp","ask_amount","ask_price","bid_price","bid_amount"]
[1742480151446,29.5,130.9,130.85,17.65475784]
[1742480151654,0.04854419,130.88,130.87,17.65475784]
[1742480151845,29.5,130.93,130.87,17.65475784]
[1742480152050,7.642,130.91,130.88,7.6432]
[1742480152245,29.5,130.93,130.87,17.65475784]
[1742480152947,0.05055814,130.91,130.89,0.0484913]
[1742480153355,0.05055814,130.91,130.89,17.70324914]
[1742480153550,0.05055814,130.91,130.9,7.6423]
[1742480153853,29.5,130.95,130.89,17.70324914]
[1742480154049,37.1394,130.95,130.92,7.6408]
[1742480154253,29.5,130.95,130.9,4.0499]
[1742480154654,7.6403,130.94,130.91,7.6414]
[1742480154858,7.68895716,130.94,130.91,7.69400717]
[1742480155051,7.68895716,130.94,130.91,0.05260717]
[1742480155254,7.6406,130.93,130.91,0.05260717]
[1742480155953,7.68885716,130.94,130.91,0.05260717]
[1742480156354,0.04865716,130.94,130.91,0.05260717]
[1742480156753,0.04865716,130.94,130.92,7.6408]
[1742480156949,0.04865716,130.94,130.91,0.05260717]
[1742480157254,0.04865716,130.94,130.93,7.6405]
[1742480158050,0.04865716,130.94,130.92,7.6408]
[1742480158249,0.04865716,130.94,130.91,0.05260717]
[1742480158954,0.04865716,130.94,130.92,17.65475784]
[1742480159150,29.48,130.97,130.95,7.6388]
[1742480159959,29.48,130.97,130.94,7.6396]
[1742480160359,29.53530199,130.97,130.95,7.6393]
[1742480161056,29.53530199,130.97,130.94,7.69499568]
[1742480161361,29.53530199,130.97,130.94,0.05519568]
[1742480161754,29.53530199,130.97,130.96,7.6388]
[1742480161951,29.53530199,130.97,130.94,0.05519568]
[1742480162462,29.53530199,130.97,130.96,7.6388]
[1742480162662,0.05530199,130.97,130.96,7.6388]
[1742480163862,0.05530199,130.97,130.94,0.05519568]
[1742480164252,37.1155,131.02,130.94,17.70995352]
[1742480164559,29.48,131.02,130.96,17.65475784]
[1742480164762,7.6362,131.01,130.97,7.6379]
[1742480165159,29.46,131.01,130.96,17.65475784]
[1742480165359,29.46,131.01,130.99,7.6365]
[1742480165554,0.04926529,131.0,130.98,17.65475784]
[1742480165756,29.46,131.05,130.98,25.78255784]
[1742480166054,37.0935,131.05,131.02,7.6349]
[1742480166262,29.46,131.05,131.0,17.65475784]
[1742480166458,37.0941,131.05,131.01,7.6353]
[1742480166655,29.46,131.05,131.01,7.6353]
[1742480166859,0.05702566,131.04,131.02,7.68415509]
[1742480167059,0.05702566,131.04,131.02,17.70371293]
[1742480167369,29.46,131.08,131.02,17.70371293]
[1742480168061,37.0921,131.08,131.04,7.6338]
[1742480168262,37.0921,131.08,131.02,17.65475784]
[1742480168467,7.68611927,131.07,131.05,0.0584485]
[1742480168973,0.05371927,131.07,131.05,0.0584485]
[1742480169367,0.05371927,131.07,131.05,7.6916485]
[1742480169673,0.05371927,131.07,131.05,0.0584485]
[1742480169967,10.48697777,131.09,131.08,7.6318]
[1742480170165,115.35675551,131.1,131.08,17.65475784]
[1742480170362,115.35675551,131.1,131.09,7.6312]
[1742480170964,344.06933324,131.14,131.08,17.65475784]
[1742480170965,37.0885,131.14,131.1,7.6306]
[1742480171165,0.05265153,131.11,131.1,7.6306]
[1742480171773,7.6279,131.15,131.12,7.6294]
[1742480172574,29.46,131.16,131.09,29.46]
[1742480172772,47.11475784,131.16,131.09,29.46]
[1742480172967,0.0567176,131.14,131.11,0.05246221]
[1742480173269,7.63,131.12,131.11,0.05246221]
[1742480174569,7.63,131.12,131.11,0.00391802]
[1742480175172,7.6328,131.07,131.05,4.1309]
[1742480175367,29.44,131.09,131.03,252.0]
[1742480175571,29.44,131.08,131.03,252.0]
[1742480176264,0.05782296,131.07,131.04,0.05331733]
[1742480177071,0.05782296,131.07,131.06,7.6329]
[1742480177777,29.44,131.1,131.05,57.61436152]
[1742480177979,29.44,131.11,131.05,65.91556152]
[1742480178175,29.44,131.12,131.05,65.91556152]
[1742480178976,0.05021027,131.1,131.09,7.6312]
[1742480179777,0.05021027,131.1,131.07,0.0517062]
[1742480180174,0.05021027,131.1,131.09,7.6312]
[1742480181078,29.44,131.13,131.11,7.6296]
[1742480181574,37.068,131.15,131.12,7.6294]
[1742480181875,29.44,131.15,131.09,29.44]
[1742480182077,7.67838561,131.13,131.11,0.05132568]
[1742480182269,0.04938561,131.13,131.11,0.05132568]
[1742480182675,0.04938561,131.13,131.11,7.68102568]
[1742480182877,0.04938561,131.13,131.11,0.05132568]
[1742480183673,0.04938561,131.13,131.11,28.2256872]
[1742480183883,4.23,131.21,131.12,29.42]
[1742480184079,29.42,131.2,131.14,28.17436152]
[1742480184683,4.23,131.21,131.14,28.17436152]
[1742480184879,29.42,131.2,131.14,28.17436152]
[1742480185176,37.0451,131.2,131.17,7.6262]
[1742480185380,37.0451,131.2,131.16,0.05764683]
[1742480185577,29.42,131.2,131.16,0.05764683]
[1742480186682,29.42,131.19,131.16,0.05764683]
[1742480186979,29.42,131.18,131.13,28.17436152]
[1742480187186,29.42,131.18,131.16,0.05387478]
[1742480187784,29.42,131.18,131.17,7.6265]
[1742480187978,29.42,131.18,131.16,0.05387478]
[1742480188379,29.42,131.18,131.16,7.68077478]
[1742480188581,29.42,131.18,131.16,0.05387478]
[1742480188784,37.0451,131.2,131.18,7.6259]
[1742480188981,29.42,131.2,131.16,0.05387478]
[1742480189781,8.229,131.24,131.16,0.05387478]
[1742480189981,7.6239,131.22,131.15,279.89436152]
[1742480190184,29.42,131.22,131.19,0.05321864]
[1742480190384,29.42,131.24,131.22,7.6235]
[1742480190582,29.42,131.25,131.18,28.17436152]
[1742480190887,29.42,131.25,131.22,0.05663074]
[1742480191087,37.0424,131.25,131.22,0.05663074]
[1742480191479,7.6231,131.23,131.22,0.05663074]
[1742480194589,7.6228,131.24,131.22,0.05663074]
[1742480194893,29.42,131.25,131.22,0.05663074]
[1742480195195,7.6231,131.23,131.22,0.05663074]
[1742480195590,37.0422,131.25,131.22,7.67993074]
[1742480195787,29.42,131.25,131.22,0.05663074]
[1742480196991,37.0423,131.25,131.22,7.68013074]
[1742480197189,29.42,131.25,131.22,0.05663074]
[1742480197390,7.621,131.27,131.24,7.6221]
[1742480197592,37.021,131.27,131.24,7.6221]
[1742480197793,8.3709,131.28,131.24,7.6221]
[1742480197794,8.3709,131.28,131.24,0.04937311]
[1742480198105,29.4,131.26,131.24,0.04937311]
[1742480198296,4.2767,131.28,131.24,0.04937311]
[1742480198490,33.6767,131.28,131.24,0.04937311]
[1742480198796,4.2767,131.28,131.24,0.04937311]
[1742480199097,33.6767,131.28,131.24,0.04937311]
[1742480199298,29.4,131.28,131.26,7.6208]
[1742480199590,4.2739,131.31,131.24,28.22373463]
[1742480199791,29.4,131.3,131.24,28.22373463]
[1742480200496,29.4,131.3,131.28,7.62]
[1742480200891,36.9987,131.31,131.28,7.66923487]
[1742480201195,29.38,131.31,131.28,0.04923487]
[1742480201398,36.9988,131.31,131.28,0.04923487]
[1742480201587,12.5448,131.35,131.28,0.04923487]
[1742480201790,29.38,131.34,131.28,0.04923487]
[1742480202191,28.17436152,131.33,131.28,0.04923487]
[1742480202404,28.17436152,131.33,131.23,7.6227]
[1742480202695,7.621,131.27,131.23,7.6227]
[1742480202896,37.001,131.27,131.23,7.6227]
[1742480203096,29.38,131.27,131.21,284.05876152]
[1742480203493,0.05276273,131.25,131.23,0.05023837]
[1742480203999,0.05276273,131.25,131.23,7.67333837]
[1742480204196,0.05276273,131.25,131.23,0.05023837]
[1742480204796,7.67466273,131.25,131.23,0.05023837]
[1742480204996,0.05276273,131.25,131.23,0.05023837]
[1742480205197,12.5448,131.35,131.24,28.17436152]
[1742480205397,29.38,131.34,131.24,28.17436152]
[1742480205897,29.38,131.34,131.23,29.38]
[1742480205898,29.38,131.34,131.27,28.17436152]
[1742480206300,36.9969,131.34,131.27,28.17436152]
[1742480206502,29.38,131.34,131.29,0.04868035]
[1742480206794,7.6176,131.33,131.29,7.66798035]
[1742480207001,29.38,131.34,131.29,0.04868035]
[1742480207195,29.38,131.33,131.29,0.04868035]
[1742480208602,7.6189,131.31,131.29,0.04868035]
[1742480208794,29.38,131.3,131.29,0.04868035]
[1742480208992,57.55436152,131.3,131.21,255.8844]
[1742480209301,3.9991,131.29,131.21,255.8844]
[1742480209498,7.9744,131.29,131.21,255.8844]
[1742480209801,7.9744,131.29,131.21,251.6]
[1742480210002,7.6213,131.26,131.23,7.6227]
[1742480210201,29.38,131.25,131.24,0.05131208]
[1742480211302,0.04868035,131.26,131.24,7.67381208]
[1742480211497,0.04868035,131.26,131.24,0.05131208]
[1742480211898,0.04868035,131.26,131.24,7.67331208]
[1742480212099,0.04868035,131.26,131.24,0.05131208]
[1742480212295,0.04868035,131.26,131.24,7.67351208]
[1742480212496,0.04868035,131.26,131.24,0.05131208]
[1742480212998,0.04868035,131.26,131.25,7.6219]
[1742480213796,29.38,131.3,131.24,0.05131208]
[1742480214202,29.38,131.31,131.3,7.619]
[1742480214404,29.38,131.31,131.25,28.17436152]
[1742480214405,29.38,131.32,131.26,29.38]
[1742480214797,29.38,131.32,131.25,28.17436152]
[1742480214994,29.38,131.32,131.28,0.05557088]
[1742480215198,36.9981,131.32,131.29,7.6193]
[1742480215399,29.38,131.32,131.29,7.6193]
[1742480215902,4.2261,131.34,131.3,7.6189]
[1742480216102,29.38,131.33,131.25,28.17436152]
[1742480216301,29.38,131.33,131.31,0.04900349]
[1742480216505,7.6183,131.32,131.29,7.6193]
[1742480216707,7.6183,131.32,131.31,0.05139568]
[1742480217403,29.38,131.33,131.31,0.05139568]
[1742480217906,7.6178,131.32,131.31,0.05139568]
[1742480218110,29.38,131.33,131.31,0.05139568]
[1742480218306,7.6178,131.32,131.31,0.05139568]
[1742480219008,29.38,131.33,131.31,0.05139568]
[1742480219707,7.6178,131.32,131.31,0.05139568]
[1742480220810,36.9976,131.33,131.31,0.05139568]
[1742480221103,4.1192,131.35,131.31,0.05139568]
[1742480221407,33.4792,131.35,131.31,0.05139568]
[1742480221606,33.4792,131.35,131.33,7.617]
[1742480221809,33.4792,131.35,131.31,0.05139568]
[1742480222002,4.128,131.38,131.31,0.05139568]
[1742480222206,33.488,131.38,131.31,28.2257572]
[1742480222406,7.6152,131.37,131.31,28.2257572]
[1742480222603,33.488,131.38,131.31,0.05139568]
[1742480223207,29.36,131.37,131.34,7.6164]
[1742480223411,4.128,131.38,131.29,28.17436152]
[1742480223605,29.36,131.37,131.34,0.0562223]
[1742480224205,4.128,131.38,131.35,7.6157]
[1742480224406,33.528,131.38,131.35,7.6157]
[1742480224712,33.528,131.38,131.34,0.0562223]
[1742480224713,29.4,131.38,131.34,0.0562223]
[1742480225811,29.4,131.38,131.34,7.6727223]
[1742480226213,37.0146,131.38,131.34,0.0562223]
[1742480226513,7.6146,131.38,131.36,7.6154]
[1742480226910,33.7259,131.39,131.37,7.6149]
[1742480227111,33.7259,131.39,131.32,32.17286152]
[1742480227312,41.3399,131.39,131.37,0.05292198]
[1742480227507,41.3399,131.39,131.36,7.6152]
[1742480227711,41.3399,131.39,131.37,0.0526597]
[1742480227913,8.156,131.42,131.34,28.17436152]
[1742480228115,29.5,131.41,131.37,0.05022703]
[1742480229413,8.156,131.42,131.37,0.05022703]
[1742480229614,7.6134,131.4,131.37,7.66462703]
[1742480229807,29.48,131.41,131.37,0.05022703]
[1742480230212,3.9399,131.45,131.37,0.05022703]
[1742480230409,29.48,131.44,131.38,28.17436152]
[1742480230614,31.46093332,131.46,131.4,0.04982287]
[1742480230908,7.6118,131.43,131.4,7.66272287]
[1742480231114,29.48,131.45,131.4,0.04982287]
[1742480231815,8.5456,131.47,131.4,0.04982287]
[1742480232116,29.46,131.46,131.4,0.04982287]
[1742480232309,29.46,131.46,131.42,7.6116]
[1742480232509,29.46,131.46,131.4,0.04982287]
[1742480232710,29.46,131.46,131.42,0.05734791]
[1742480233013,4.2525,131.47,131.42,0.05734791]
[1742480233212,29.42,131.46,131.42,0.05734791]
[1742480233818,7.6115,131.43,131.42,0.05734791]
[1742480234115,29.4,131.43,131.42,0.05734791]
[1742480235514,4.2525,131.47,131.42,0.05734791]
[1742480235820,29.44,131.46,131.42,0.05734791]
[1742480237017,29.44,131.45,131.42,0.05734791]
[1742480237618,37.0505,131.45,131.42,7.66904791]
[1742480237820,29.44,131.45,131.42,0.05734791]
[1742480238116,4.3064,131.48,131.44,7.6103]
[1742480238117,11.9153,131.48,131.44,7.6103]
[1742480238326,29.44,131.46,131.4,279.39436152]
[1742480238616,29.44,131.46,131.45,0.0540049]
[1742480238814,7.6083,131.49,131.45,7.6103]
[1742480239016,29.46,131.48,131.42,28.17436152]
[1742480239216,29.46,131.47,131.46,7.6097]
[1742480239427,29.46,131.47,131.46,0.04870467]
[1742480240922,29.82,131.48,131.47,7.609]
[1742480241421,29.82,131.48,131.46,7.65810467]
[1742480241815,125.84373329,131.6,131.47,29.8]
[1742480242021,4.0647,131.56,131.47,29.8]
[1742480242222,4.0647,131.56,131.51,0.05500028]
[1742480242420,29.8,131.55,131.51,0.05500028]
[1742480243015,29.8,131.55,131.51,7.66160028]
[1742480243414,29.8,131.55,131.52,7.6059]
[1742480243725,8.4569,131.57,131.51,28.2293618]
[1742480243924,29.88,131.56,131.54,7.6048]
[1742480244419,29.88,131.56,131.54,7.65673669]
[1742480244823,29.88,131.56,131.54,0.05193669]
[1742480246823,4.1177,131.59,131.54,0.05193669]
[1742480247120,38.6393,131.63,131.56,28.17436152]
[1742480247514,38.6393,131.63,131.55,30.3]
[1742480247515,34.4532,131.63,131.55,30.3]
[1742480247722,34.4532,131.63,131.58,0.05286524]
[1742480248423,7.6013,131.61,131.58,0.05286524]
[1742480248622,30.58,131.6,131.58,0.05286524]
[1742480248925,30.58,131.6,131.56,7.6039]
[1742480249122,30.58,131.6,131.52,251.1]
[1742480249326,4.1853,131.59,131.49,59.17436152]
[1742480249529,7.6034,131.57,131.5,7.6071]
[1742480249725,31.2,131.56,131.49,59.17436152]
[1742480250032,31.2,131.55,131.49,59.17436152]
[1742480250321,31.2,131.55,131.51,0.05780221]
[1742480250322,0.04935618,131.54,131.51,0.05780221]
[1742480251117,251.0,131.67,131.53,56.34872304]
[1742480251323,251.0,131.67,131.56,28.17436152]
[1742480251527,31.18,131.66,131.57,31.18]
[1742480252024,31.18,131.66,131.61,7.6006]
[1742480252625,38.7782,131.66,131.61,7.6006]
[1742480252830,31.14,131.65,131.6,0.04829744]
[1742480253228,251.0,131.67,131.6,0.04829744]
[1742480253429,31.14,131.66,131.6,0.04829744]
[1742480254028,31.2,131.66,131.6,0.04829744]
[1742480254228,39.5279,131.68,131.65,7.5986]
[1742480254433,39.5279,131.68,131.62,28.17436152]
[1742480254728,8.3279,131.68,131.64,7.65501873]
[1742480255039,8.3279,131.68,131.64,0.05611873]
[1742480255229,7.5932,131.75,131.7,7.5954]
[1742480255426,4.1286,131.76,131.64,31.27611873]
[1742480255427,31.24,131.74,131.64,59.39436152]
[1742480255625,28.17436152,131.73,131.6,279.11436152]
[1742480255935,7.598,131.67,131.6,279.11436152]
[1742480256121,31.38,131.66,131.57,59.49436152]
[1742480256322,31.4,131.65,131.57,59.49436152]
[1742480257034,0.05196169,131.62,131.6,0.0530245]
[1742480257531,31.51196169,131.62,131.6,0.0530245]
[1742480258128,0.05196169,131.62,131.6,28.22738602]
[1742480259235,0.05196169,131.62,131.6,0.0530245]
[1742480261326,28.22632321,131.62,131.58,17.83619]
[1742480261531,36.66182321,131.62,131.5,28.17436152]
[1742480261729,36.60986152,131.62,131.5,28.17436152]
[1742480262432,7.6025,131.59,131.55,0.0548702]
[1742480262737,36.60986152,131.62,131.55,0.0548702]
[1742480262738,31.64,131.58,131.55,0.0548702]
[1742480262931,31.64,131.57,131.55,0.0548702]
[1742480269147,59.81436152,131.57,131.47,4.0522]
[1742480269436,4.0167,131.56,131.47,4.0522]
[1742480269642,4.0167,131.56,131.47,11.6608]
[1742480269940,4.0576,131.55,131.47,4.0522]
[1742480270136,31.56,131.54,131.48,7.6082]
[1742480270342,0.05816852,131.52,131.5,0.04900175]
[1742480270546,31.54,131.51,131.5,0.04900175]
[1742480271137,31.59816852,131.52,131.5,0.04900175]
[1742480271339,0.05816852,131.52,131.51,7.6068]
[1742480271645,0.05816852,131.52,131.5,0.04900175]
[1742480271841,0.05816852,131.52,131.5,7.65610175]
[1742480272034,0.05816852,131.52,131.5,0.04900175]
[1742480272544,31.52,131.56,131.5,28.22336327]
[1742480272741,259.3715,131.6,131.5,28.22336327]
[1742480272948,31.52,131.59,131.55,7.6044]
[1742480273147,31.52,131.59,131.5,28.17436152]
[1742480273340,31.52,131.59,131.54,7.6047]
[1742480273536,31.52,131.59,131.5,28.17436152]
[1742480273740,0.05628902,131.58,131.55,0.05843293]
[1742480273939,59.69436152,131.59,131.55,0.05843293]
[1742480274145,0.05259434,131.58,131.55,0.05843293]
[1742480275640,0.05259434,131.58,131.55,7.66293293]
[1742480276143,0.05259434,131.58,131.55,0.05843293]
[1742480277142,31.51259434,131.58,131.55,0.05843293]
[1742480277545,31.51259434,131.58,131.57,7.6034]
[1742480277845,31.51259434,131.58,131.55,0.05843293]
[1742480278547,31.51259434,131.58,131.55,7.66253293]
[1742480278743,31.51259434,131.58,131.55,0.05843293]
[1742480279143,31.51259434,131.58,131.48,8.2334]
[1742480279347,28.17436152,131.57,131.48,4.0792]
[1742480279542,28.17436152,131.57,131.52,7.6061]
[1742480279744,28.17436152,131.57,131.48,4.0792]
[1742480280049,31.46,131.58,131.54,7.6048]
[1742480280244,31.46,131.58,131.55,0.0527793]
[1742480280449,0.05700398,131.57,131.54,62.0]
[1742480280645,0.05700398,131.57,131.55,0.04817267]
[1742480281346,0.05700398,131.57,131.56,7.6039]
[1742480282949,0.05700398,131.57,131.55,0.04817267]
[1742480283251,31.3,131.56,131.55,0.04817267]
[1742480283654,31.3,131.56,131.55,7.65267267]
[1742480283953,0.05700398,131.57,131.55,0.04817267]
[1742480284155,0.05700398,131.57,131.56,4.0957]
[1742480284448,0.05700398,131.57,131.56,11.6996]
[1742480284752,0.05700398,131.57,131.56,7.6039]
[1742480286053,0.05700398,131.57,131.55,0.04817267]
[1742480286749,0.05700398,131.57,131.56,7.6039]
[1742480289351,4.0838,131.64,131.55,0.04817267]
[1742480289551,31.16,131.63,131.55,28.17436152]
[1742480289855,31.16,131.63,131.55,32.29016152]
[1742480290046,4.0838,131.64,131.55,32.29016152]
[1742480290249,31.14,131.63,131.55,32.29016152]
[1742480290647,31.14,131.63,131.61,7.6006]
[1742480290849,31.14,131.63,131.55,32.29016152]
[1742480291150,31.14,131.63,131.61,0.05624286]
[1742480291351,0.05674199,131.6,131.55,32.29016152]
[1742480291555,31.14,131.63,131.56,0.05027075]
[1742480291743,3.695e-05,131.59,131.56,0.05027075]
[1742480291947,3.695e-05,131.59,131.57,31.1]
[1742480292148,3.695e-05,131.59,131.58,8.5599]
[1742480292352,3.695e-05,131.59,131.58,44.33706152]
[1742480292655,3.695e-05,131.59,131.58,78.1627]
[1742480293848,3.695e-05,131.59,131.58,73.8271]
[1742480294047,3.695e-05,131.59,131.58,62.0]
[1742480294656,28.17439847,131.59,131.56,0.05027075]
[1742480295057,28.17439847,131.59,131.57,7.6033]
[1742480295252,28.17439847,131.59,131.56,0.05027075]
[1742480296061,35.77689847,131.59,131.56,0.05027075]
[1742480296358,28.17439847,131.59,131.56,0.05027075]
[1742480296757,28.17436152,131.57,131.5,4.0252]
[1742480297059,28.17436152,131.55,131.47,39.3012]
[1742480297355,30.98,131.54,131.47,39.3012]
[1742480297560,28.17436152,131.53,131.48,62.0]
[1742480297954,0.05569992,131.52,131.49,0.05124929]
[1742480298454,0.05569992,131.52,131.51,7.6068]
[1742480299059,31.02,131.54,131.53,7.6057]
[1742480299261,31.02,131.55,131.5,4.2823]
[1742480299454,38.6644,131.56,131.5,4.2823]
[1742480299658,31.06,131.56,131.52,7.6059]
[1742480299858,7.6045,131.55,131.5,4.2823]
[1742480300164,31.06,131.56,131.5,4.2823]
[1742480300363,0.05680085,131.54,131.51,0.0530498]
[1742480300564,31.08,131.53,131.51,0.0530498]
[1742480301156,31.08,131.53,131.52,62.0]
[1742480301862,31.08,131.53,131.52,69.6062]
[1742480302363,0.05680085,131.54,131.52,62.0]
[1742480302552,0.05680085,131.54,131.53,7.6057]
[1742480302957,0.05680085,131.54,131.52,69.6058]
[1742480303158,0.05680085,131.54,131.52,62.0]
[1742480303458,0.05680085,131.54,131.53,7.6057]
[1742480304360,41.58504821,131.6,131.53,35.3884]
[1742480304559,41.58504821,131.6,131.54,4.279]
[1742480304765,41.58504821,131.6,131.58,7.6024]
[1742480304959,41.58504821,131.6,131.54,35.359]
[1742480305360,41.58504821,131.6,131.58,7.6025]
[1742480305556,41.54504821,131.6,131.58,7.6025]
[1742480305768,31.04,131.6,131.58,7.6025]
[1742480306162,31.04,131.6,131.57,7.6032]
[1742480306363,31.04,131.6,131.56,0.04882889]
[1742480306765,31.04,131.6,131.58,7.6023]
[1742480306966,38.6417,131.6,131.56,0.04882889]
[1742480307267,31.04,131.6,131.56,0.04882889]
[1742480307665,31.04,131.6,131.59,7.6022]
[1742480307968,31.04,131.6,131.56,0.04882889]
[1742480309067,7.6031,131.58,131.56,0.04882889]
[1742480309273,31.04,131.6,131.56,0.04882889]
[1742480309867,7.6031,131.58,131.56,0.04882889]
[1742480310070,31.04,131.6,131.56,0.04882889]
[1742480310469,28.17436152,131.59,131.56,0.04882889]
[1742480311268,31.04,131.6,131.56,0.04882889]
[1742480311471,7.6026,131.59,131.56,0.04882889]
[1742480311867,7.6026,131.59,131.56,7.65222889]
[1742480312073,31.04,131.6,131.56,7.65222889]
[1742480312674,7.6026,131.59,131.56,7.65222889]
[1742480313272,31.04,131.6,131.56,0.04882889]
[1742480313773,38.6421,131.6,131.56,0.04882889]
[1742480314275,38.6417,131.6,131.57,7.6031]
[1742480314472,280.43740452,131.63,131.56,0.04882889]
[1742480314668,31.0,131.62,131.56,0.04882889]
[1742480315574,250.94,131.63,131.56,0.04882889]
[1742480315765,70.14034305,131.65,131.56,34.96362889]
[1742480315963,30.96,131.64,131.62,7.6004]
[1742480316171,30.96,131.64,131.59,0.05219547]
[1742480316376,30.96,131.64,131.6,7.65870417]
[1742480316572,30.96,131.64,131.6,0.05750417]
[1742480316971,30.96,131.64,131.61,7.601]
[1742480317173,7.5999,131.63,131.6,0.05750417]
[1742480317372,30.96,131.64,131.6,0.05750417]
[1742480317775,30.96,131.64,131.61,62.0]
[1742480318173,7.6004,131.63,131.61,62.0]
[1742480318374,30.96,131.64,131.61,62.0]
[1742480318973,7.6005,131.62,131.61,62.0]
[1742480321175,7.6002,131.63,131.61,62.0]
[1742480321678,30.96,131.64,131.61,62.0]
[1742480322372,7.6005,131.62,131.61,62.0]
[1742480322579,28.17436152,131.63,131.6,0.05750417]
[1742480323070,7.6008,131.62,131.6,0.05750417]
[1742480323274,30.84,131.61,131.6,0.05750417]
[1742480323677,30.84,131.61,131.6,7.65910417]
[1742480323980,30.84,131.63,131.6,0.05750417]
[1742480324377,28.17436152,131.67,131.6,0.05750417]
[1742480324581,30.84,131.66,131.63,7.5994]
[1742480324776,261.40504821,131.68,131.61,4.3514]
[1742480324970,30.84,131.66,131.61,4.3514]
[1742480325174,30.84,131.66,131.64,7.599]
[1742480325585,30.84,131.66,131.65,62.0]
[1742480325782,38.4382,131.66,131.65,62.0]
[1742480327081,38.4382,131.66,131.63,0.05170976]
[1742480327985,30.84,131.66,131.63,7.65160976]
[1742480328286,30.84,131.66,131.63,0.05170976]
[1742480328882,38.4386,131.66,131.63,7.65150976]
[1742480329084,30.84,131.66,131.63,0.05170976]
[1742480329482,7.5987,131.65,131.63,0.05170976]
[1742480329894,30.84,131.66,131.63,0.05170976]
[1742480330095,7.5993,131.64,131.63,0.05170976]
[1742480330388,30.84,131.66,131.63,0.05170976]
[1742480331282,38.4385,131.66,131.63,7.65120976]
[1742480332287,7.5971,131.68,131.63,0.05170976]
[1742480332491,30.64,131.68,131.63,0.05170976]
[1742480332784,7.599,131.65,131.63,0.05170976]
[1742480332986,30.64,131.68,131.63,0.05170976]
[1742480333187,17.4631282,131.67,131.64,62.0]
[1742480333793,17.4631282,131.65,131.63,0.05170976]
[1742480333984,48.0831282,131.65,131.63,0.05170976]
[1742480334178,55.6823282,131.65,131.63,0.05170976]
[1742480334379,48.0831282,131.65,131.63,0.05170976]
[1742480334583,30.62,131.65,131.63,0.05170976]
[1742480334785,30.62,131.65,131.63,7.65130976]
[1742480335086,30.62,131.65,131.63,0.05170976]
[1742480335288,30.62,131.65,131.64,7.5993]
[1742480335490,30.6,131.67,131.63,0.05170976]
[1742480336889,30.6,131.67,131.66,7.5982]
[1742480337787,17.4631282,131.71,131.67,7.5973]
[1742480337980,38.2361,131.7,131.67,7.5973]
[1742480338187,38.2361,131.7,131.68,0.05710777]
[1742480338980,38.2361,131.7,131.68,7.65400777]
[1742480339180,7.5964,131.69,131.68,0.05710777]
[1742480339792,38.1964,131.69,131.68,0.05710777]
[1742480339991,30.6,131.69,131.68,0.05710777]
[1742480341096,38.1964,131.69,131.68,62.05710777]
[1742480341288,30.6,131.69,131.68,62.05710777]
[1742480341793,38.1964,131.69,131.68,62.05710777]
[1742480341989,55.6595282,131.69,131.68,0.05710777]
[1742480342194,55.6595282,131.69,131.62,34.8747]
[1742480342195,7.5984,131.66,131.63,7.5996]
[1742480342399,30.56,131.66,131.61,4.3514]
[1742480342692,38.1584,131.66,131.63,7.5996]
[1742480343293,30.61505418,131.66,131.64,7.5993]
[1742480343800,30.61505418,131.66,131.65,7.5987]
[1742480343997,30.61505418,131.66,131.63,0.05300986]
[1742480344894,7.5993,131.64,131.63,0.05300986]
[1742480345097,17.4631282,131.65,131.58,4.166]
[1742480345295,17.4631282,131.6,131.52,259.1493]
[1742480345496,30.46,131.59,131.52,259.1493]
[1742480346396,0.05530163,131.57,131.54,7.65856129]
[1742480346594,30.44,131.56,131.54,0.05406129]
[1742480346799,47.9031282,131.56,131.54,0.05406129]
[1742480346995,47.9031282,131.56,131.49,10.3432608]
[1742480347196,17.4631282,131.53,131.49,10.3432608]
[1742480347491,30.42,131.52,131.49,10.3432608]
[1742480348201,30.47064721,131.52,131.5,62.0]